Cogmind - Beta 16 @@@ ROGUE MODE // 2025.11.15 @ 18:09:10 Player: Mozco Result: Self-destructed Performance ------------- Evolutions (1) 500 Regions Visited (5) 1000 Robots Destroyed (54) 270 Value Destroyed (935) 935 Prototype IDs (43) 860 Alien Tech Used (0) 0 Bonus (480) 480 TOTAL SCORE: 4045 Bonus ------- Follower Combat Kills 180 Aligned with FarCom 300 Cogmind --------- Core Integrity 271/400 Matter 240/300 Energy 265/265 System Corruption 0% Temperature Cool (0) Movement Walking (190) Ox1 Location -9/Exiles Parts ------- > --- POWER (1) -------- Improved Ion Engine > --- PROPULSION (3) --- Aluminum Leg Aluminum Leg Aluminum Leg > --- UTILITY (3) ------ Improved Heat Sink Large Storage Unit Hardened Light Armor Plating > --- WEAPON (2) ------- Spread Laser Spread Laser > --- INVENTORY (15) --- Structural Scanner Salvage Targeting Computer Reaction Control System Hardlight Generator Hacking Suite Hacking Suite Army-in-a-Box (30/30) Spread Laser Improved Medium Laser Mini Grenade Launcher Peak State ------------ > --- POWER ------------ Improved Ion Engine > --- PROPULSION ------- Aluminum Leg Aluminum Leg Aluminum Leg > --- UTILITY ---------- Improved Heat Sink Large Storage Unit Hardened Light Armor Plating > --- WEAPON ----------- Spread Laser Spread Laser > --- INVENTORY -------- Structural Scanner Salvage Targeting Computer Reaction Control System Hardlight Generator Hacking Suite Hacking Suite Army-in-a-Box Spread Laser Improved Medium Laser Mini Grenade Launcher [Rating: 22] Favorites ----------- Power Improved Ion Engine Engine Improved Ion Engine Propulsion Aluminum Leg Leg Aluminum Leg Utility Large Storage Unit Device Improved Heat Sink Storage Large Storage Unit Processor Visual Processing Unit Protection Hardened Light Armor Plating Weapon Improved Medium Laser Energy Gun Improved Medium Laser Ballistic Gun Assault Rifle Launcher Mini Grenade Launcher Special Melee Weapon Datajack Build | -11 -10 -10 -9 -9 -9 ------- Run | Yrd Mat Min Mat Min Exi Slots Evolved 2 | . . . 2 . . Power . | . . . . . . Propulsion 1 | . . . 1 . . Utility 1 | . . . 1 . . Weapon . | . . . . . . Parts Attached 43 | 6 14 1 19 1 2 Power 6 | 1 2 . 3 . . Engine 6 | 1 2 . 3 . . Core . | . . . . . . Reactor . | . . . . . . Propulsion 14 | 2 7 . 5 . . Treads . | . . . . . . Leg 14 | 2 7 . 5 . . Wheel . | . . . . . . Hover . | . . . . . . Flight . | . . . . . . Utility 10 | 1 3 . 6 . . Device 3 | . 1 . 2 . . Storage 4 | 1 1 . 2 . . Processor 1 | . . . 1 . . Hackware . | . . . . . . Protection 2 | . 1 . 1 . . Artifact . | . . . . . . Weapon 13 | 2 2 1 5 1 2 Energy Gun 8 | . 2 . 4 . 2 Energy Cannon . | . . . . . . Ballistic Gun 3 | 2 . 1 . . . Ballistic Cannon . | . . . . . . Launcher 1 | . . . . 1 . Special Weapon . | . . . . . . Impact Weapon . | . . . . . . Slashing Weapon . | . . . . . . Piercing Weapon . | . . . . . . Special Melee Weapon 1 | . . . 1 . . Unidentified Prototypes . | . . . . . . Parts Lost 5 | . 5 . . . . Power 2 | . 2 . . . . Propulsion 1 | . 1 . . . . Utility 1 | . 1 . . . . Weapon 1 | . 1 . . . . Highest Loss Streak 3 | . 3 . . . . To Critical Strikes . | . . . . . . Average Backups 12 | . 7 10 14 14 13 Power . | . . . . . . Propulsion 2 | . 2 5 2 1 . Utility 4 | . 2 3 5 6 6 Weapon 4 | . 1 1 5 6 6 Tool/Special . | . . . . . . Unused Backups 18 | . 1 . 9 . 8 Power . | . . . . . . Propulsion . | . . . . . . Utility 8 | . . . 2 . 6 Weapon 8 | . 1 . 5 . 2 Tool/Special 2 | . . . 2 . . Average Slot Usage (%) 97 | . 90 100 99 100 100 Engine 10 | . 10 14 11 11 11 Leg 31 | . 27 28 33 33 33 Device 8 | . 7 . 9 11 11 Storage 11 | . 14 14 11 11 11 Processor 2 | . . . 5 . . Protection 7 | . 1 14 7 11 11 Energy Gun 16 | . 11 14 19 19 11 Ballistic Gun 5 | . 16 14 . . . Special Melee Weapon 1 | . . . 1 . 7 Peak Build Rating 22 | 6 8 8 20 20 22 Average Rating 15 | 4 6 8 18 19 18 On Entrance 10 | . 6 8 8 20 19 Avg Prop Armor Cover (%) . | . . . . . . Naked Turns . | . . . . . . Heaviest Build 39 | 11 19 19 39 39 39 Greatest Support 30 | 20 20 20 30 30 30 Greatest Overweight (x) 1 | . 1 . 1 1 1 Average Overweight (x) . | . . . . 1 1 Largest Inventory Capacity 15 | 8 10 10 15 15 15 Average Capacity 13 | 7 9 10 14 15 15 Most Carried 15 | 2 10 10 15 14 15 Average Carried 12 | 1 7 10 14 14 14 Final Capacity 15 | 8 10 10 15 15 15 Final Carried 15 | 2 10 10 14 14 15 Class Distribution -------------------- 57% | Mutant 40% | Scavenger-Mutant Dominant Class ---------------- Mutant | -10/Materials Commander-Mutant | -10/Mines Scavenger-Mutant | -9/Materials Mutant | -9/Mines Scavenger-Mutant | -9/Exiles Resources | -11 -10 -10 -9 -9 -9 ----------- Run | Yrd Mat Min Mat Min Exi Matter Collected 839 | 233 307 25 274 . . Remotely . | . . . . . . Salvage Created 1864 | . 469 38 1258 99 . Parts 113 | . 36 8 57 12 . Haulers Intercepted 5 | . 2 . 3 . . Recyclers Shooed 3 | . . . 3 . . Parts Field Recycled . | . . . . . . Retrieved Matter . | . . . . . . Parts Self-Destructed . | . . . . . . Prevented . | . . . . . . Parts Restored . | . . . . . . Kills | -11 -10 -10 -9 -9 -9 ------- Run | Yrd Mat Min Mat Min Exi Combat Hostiles Destroyed 34 | . 11 2 17 4 . Guns 29 | . 11 2 16 . . AOE 4 | . . . . 4 . Classes Destroyed 10 | . 5 1 4 . . Worker 2 | . . . 2 . . Tunneler 1 | . . 1 . . . Hauler 5 | . 2 . 3 . . Recycler 6 | . . . 5 1 . Mechanic 2 | . . . 2 . . Operator 1 | . 1 . . . . Watcher 3 | . 2 . 1 . . Swarmer 20 | . 6 2 8 4 . Grunt 9 | . 5 . 4 . . Sentry 5 | . . . 5 . . Best Kill Streak 7 | . 5 3 7 5 . Combat Bots Only 5 | . 5 2 4 4 . Max Kills in Single Turn 3 | . 2 1 2 3 . Gunslinging 1 | . 1 . 1 . . Exploded 2 | . . . . 2 . Melee . | . . . . . . Uniques/NPCs Destroyed . | . . . . . . Combat | -11 -10 -10 -9 -9 -9 -------- Run | Yrd Mat Min Mat Min Exi Hostile Shots Fired 193 | . 81 9 101 2 . Missed 74 | . 28 3 41 2 . Hits 119 | . 53 6 60 . . Projectile 119 | . 53 6 60 . . AOE 4 | . 4 . . . . Critical Strikes 1 | . . . 1 . . Damage Taken 1500 | . 762 45 693 . . Core 294 | . 165 . 129 . . Absorbed by Shields . | . . . . . . Redirected to Shielding 3 | . . . 3 . . Core Remaining (%) 67 | 100 . 34 . . . Volleys Fired 121 | . 50 5 64 2 . Largest 2 | . 2 2 2 1 . Hottest 121 | . 60 60 121 30 . Shots Fired 232 | . 100 10 120 2 . Gun 230 | . 100 10 120 . . Cannon . | . . . . . . Launcher 2 | . . . . 2 . Special . | . . . . . . Kinetic 74 | . 65 5 4 . . Thermal 156 | . 35 5 116 . . Explosive 2 | . . . . 2 . Electromagnetic . | . . . . . . Robot Hit Streak 9 | . 8 2 9 . . Robot Miss Streak 6 | . 3 2 6 . . Penetration Max . | . . . . . . Secondary Targets 7 | . 3 1 3 . . Max Gunslinging Chain 1 | . 1 1 1 . . Shots Hit Robots 145 | . 59 5 77 . 4 Core Hits 84 | . 27 3 46 8 . Critical Kills 1 | . 1 . . . . Critical Parts Destroyed . | . . . . . . Critical Strikes 12 | . 1 . 11 . . Burn 11 | . . . 11 . . Destroy 1 | . 1 . . . . Melee Attacks 5 | . . . 1 . 4 Impact . | . . . . . . Slashing . | . . . . . . Piercing . | . . . . . . Sneak Attacks 5 | . . . 1 . 4 Combat Hostiles . | . . . . . . Follow-up Attacks . | . . . . . . Damage Inflicted 2349 | . 717 59 1319 254 . Guns 2087 | . 717 59 1311 . . Cannons . | . . . . . . Explosions 254 | . . . . 254 . Melee . | . . . . . . Ramming 8 | . . . 8 . . Kinetic 574 | . 522 35 17 . . Thermal 1513 | . 195 24 1294 . . Explosive 254 | . . . . 254 . Electromagnetic . | . . . . . . Impact . | . . . . . . Slashing . | . . . . . . Piercing . | . . . . . . Highest Corruption . | . . . . . . Average Corruption . | . . . . . . Corruption Purged . | . . . . . . Corruption Blocked . | . . . . . . Overload Shots . | . . . . . . Overflow Damage . | . . . . . . Projectiles . | . . . . . . Explosions . | . . . . . . Melee . | . . . . . . Knockbacks . | . . . . . . Impact . | . . . . . . Kinetic . | . . . . . . Secondary . | . . . . . . Self-Inflicted Damage . | . . . . . . Shots . | . . . . . . Rammed . | . . . . . . Targets Rammed 2 | . . . 2 . . Kicked 2 | . . . 2 . . Crushed . | . . . . . . Highest Temperature 184 | . 48 . 184 . . Average Temperature 39 | . 24 . 40 . . Received Heat Transfer 390 | . 180 . 210 . . Siege Activations . | . . . . . . Martial Activations . | . . . . . . Shielding Activations . | . . . . . . Robots Disrupted . | . . . . . . Combat Hostiles . | . . . . . . Robots Corrupted . | . . . . . . Combat Hostiles . | . . . . . . Parts Fried . | . . . . . . Impact Corruptions . | . . . . . . Robots Melted 1 | . . . 1 . . Combat Hostiles 1 | . . . 1 . . Parts Melted 6 | . . . 6 . . Heat Transferred 4040 | . 450 50 3540 . . Parts Sabotaged . | . . . . . . Parts Stolen . | . . . . . . Parts Stripped . | . . . . . . Power Chain Reactions . | . . . . . . Alert | -11 -10 -10 -9 -9 -9 ------- Run | Yrd Mat Min Mat Min Exi Maximum Alert Level 2 | . . . 2 . . Low Security (%) 68 | 100 100 100 43 100 . Level 1 27 | . . . 48 . . Level 2 4 | . . . 7 . . Level 3 . | . . . . . . Level 4 . | . . . . . . Level 5 . | . . . . . . High Security . | . . . . . . Max Security . | . . . . . . Peak Influence 421 | . 192 66 421 134 . Initial 132 | . . . 17 132 . Average 148 | . 72 25 207 91 . Influence Increases 1376 | . 353 66 845 112 . Destroy 0b10 Robot/C 840 | . 220 40 500 80 . Destroy 0b10 Robot/NC 120 | . 25 5 85 5 . Destroy Leader 222 | . 58 . 154 10 . Allied During Kill 47 | . . 6 41 . . Trap Triggered on 0b10 20 | . . . 20 . . Successful Hack 64 | . 35 . 29 . . Disable Machine 30 | . . 15 15 . . Destroy Structure 18 | . . . 1 17 . Lose Combat Pursuer 15 | . 15 . . . . Influence Decreases 1376 | . 353 20 551 348 104 Entered New Map 341 | . . . 29 208 104 Time Decay 947 | . 309 20 478 140 . Lost Part 44 | . 44 . . . . Lost Ally 44 | . . . 44 . . Squads Dispatched 4 | . 2 . 2 . . Investigation 2 | . 1 . 1 . . Extermination . | . . . . . . Reinforcement 2 | . 1 . 1 . . Assault . | . . . . . . Garrison . | . . . . . . Intercept . | . . . . . . Searches Triggered . | . . . . . . Construction Impeded . | . . . . . . Haulers Reinforced . | . . . . . . Active Scanning Responses . | . . . . . . Cargo Convoy Interrupts . | . . . . . . Stealth | -11 -10 -10 -9 -9 -9 --------- Run | Yrd Mat Min Mat Min Exi Distress Signals 3 | . . . 3 . . Communications Jammed . | . . . . . . Distress Signals . | . . . . . . Times Spotted 63 | . 24 3 34 2 . Peak Tracking Total 4 | . 4 3 4 2 . Tactical Retreats 4 | . 4 . . . . Traps | -11 -10 -10 -9 -9 -9 ------- Run | Yrd Mat Min Mat Min Exi Traps Triggered . | . . . . . . Indirectly . | . . . . . . Trap Hack Attempts 71 | . . . 71 . . Triggered . | . . . . . . Disarmed 1 | . . . 1 . . Reprogrammed 10 | . . . 10 . . Reused 2 | . . . 2 . . Traps Extracted . | . . . . . . Installed . | . . . . . . Triggered 2 | . . . 2 . . Machines | -11 -10 -10 -9 -9 -9 ---------- Run | Yrd Mat Min Mat Min Exi Machines Disabled 2 | . . 1 1 . . Max in Single Turn 1 | . . 1 1 . . Machines Repaired . | . . . . . . Machines Dismantled . | . . . . . . Machines Sabotaged . | . . . . . . Overloaded Fab Kills . | . . . . . . Hacking | -11 -10 -10 -9 -9 -9 --------- Run | Yrd Mat Min Mat Min Exi Machines Accessed 15 | . 4 . 9 . 2 Terminals 11 | . 4 . 7 . . Fabricators . | . . . . . . Repair Stations . | . . . . . . Recycling Units . | . . . . . . Scanalyzers 2 | . . . 2 . . Garrison Access . | . . . . . . Total Hacks 68 | . 15 . 51 . 2 Successful 49 | . 8 . 39 . 2 Failed 18 | . 6 . 12 . . Catastrophic 1 | . 1 . . . . Database Lockouts 1 | . 1 . . . . Manual 29 | . 13 . 15 . 1 Terminals 44 | . 15 . 29 . . Fabricators . | . . . . . . Repair Stations . | . . . . . . Recycling Units . | . . . . . . Scanalyzers 22 | . . . 22 . . Garrison Access . | . . . . . . Terminal Hacks 19 | . 5 . 12 . 2 Record 1 | . . . . . 1 Robot Analysis 5 | . 2 . 3 . . Prototype ID Bank 3 | . 1 . 2 . . Branch Access Points 1 | . . . 1 . . Terminal Index 1 | . . . 1 . . Alert Level 1 | . . . 1 . . Locate Traps 1 | . . . 1 . . Dispatch Records 1 | . . . 1 . . Hauler Manifests 1 | . . . 1 . . Zone Layout 3 | . 2 . 1 . . Proto ID Catalog 1 | . . . . . 1 Fabricator Hacks . | . . . . . . Repair Station Hacks . | . . . . . . Recycling Unit Hacks . | . . . . . . Scanalyzer 22 | . . . 22 . . Insert Component 10 | . . . 10 . . Analyze 12 | . . . 12 . . Garrison Access Hacks . | . . . . . . Unauthorized Hacks 8 | . 3 . 5 . . Terminals 8 | . 3 . 5 . . Assimilate 3 | . 1 . 2 . . Botnet 3 | . 1 . 2 . . Operators 2 | . 1 . 1 . . Fabricators . | . . . . . . Repair Stations . | . . . . . . Recycling Units . | . . . . . . Scanalyzers . | . . . . . . Garrison Access . | . . . . . . Data Cores Recovered . | . . . . . . Used . | . . . . . . Hacking Detections 12 | . 3 . 9 . . Full Trace Events 2 | . 1 . 1 . . Feedback Events . | . . . . . . Feedback Blocked . | . . . . . . Robot Schematics Acquired . | . . . . . . Robots Built . | . . . . . . Authchips . | . . . . . . Time . | . . . . . . Total Robot Build Rating . | . . . . . . Part Schematics Acquired 10 | . . . 10 . . Parts Built . | . . . . . . Authchips . | . . . . . . Time . | . . . . . . Total Part Build Rating . | . . . . . . Part Studies Acquired . | . . . . . . Parts Repaired . | . . . . . . Time . | . . . . . . Parts Recycled . | . . . . . . Recycled Matter . | . . . . . . Retrieved Matter . | . . . . . . Retrieved Components . | . . . . . . Parts Scanalyzed 10 | . . . 10 . . Part Schematics Acquired 10 | . . . 10 . . Parts Damaged 1 | . . . 1 . . Bothacking | -11 -10 -10 -9 -9 -9 ------------ Run | Yrd Mat Min Mat Min Exi Used RIF Installer . | . . . . . . Robots Hacked 5 | . . . 1 . 4 Non-combat 4 | . . . 1 . 3 Combat 1 | . . . . . 1 Robot Hacks Applied 5 | . . . 1 . 4 parse_system 5 | . . . 1 . 4 Relay Couplers Released . | . . . . . . Fabnet Peak Effective % . | . . . . . . Robots Rewired . | . . . . . . Allies Hacked . | . . . . . . Hacks Repelled . | . . . . . . Allies | -11 -10 -10 -9 -9 -9 -------- Run | Yrd Mat Min Mat Min Exi Total Allies 5 | . 1 3 1 . . Largest Group 4 | . 1 4 4 1 1 Highest-Rated Group 50 | . 10 50 50 10 10 Highest-Rated Ally 16 | . 10 16 16 10 10 Total Orders . | . . . . . . Ally Attacks 58 | . . . 58 . . Total Damage 624 | . . . 624 . . Kills 13 | . . . 13 . . Allies Corrupted . | . . . . . . Allies Melted . | . . . . . . Intel | -11 -10 -10 -9 -9 -9 ------- Run | Yrd Mat Min Mat Min Exi Active Infowar (turns) 780 | . . . 780 . . Optics 780 | . . . 780 . . Robot Analysis Total 5 | . 2 . 3 . . Derelict Logs Recovered 1 | . . 1 . . . Drone Launches . | . . . . . . Drone Recoveries . | . . . . . . Exploration | -11 -10 -10 -9 -9 -9 ------------- Run | Yrd Mat Min Mat Min Exi Turns Passed 3459 | 57 847 95 1694 291 475 Spaces Moved 1792 | 42 550 66 740 151 243 Core 5 | 5 . . . . . Treads . | . . . . . . Legs 1787 | 37 550 66 740 151 243 Wheels . | . . . . . . Hover . | . . . . . . Flight . | . . . . . . Fastest Speed 50 | 50 120 120 120 190 190 Average Speed 161 | 111 120 120 183 190 190 Slowest Speed 190 | 120 190 120 190 190 190 Overloaded Moves . | . . . . . . Propulsion Burnouts . | . . . . . . Robots Hopped . | . . . . . . Potential Cave-ins . | . . . . . . Cave-ins Triggered . | . . . . . . Exploration Rate (%) 42 | 4 78 21 61 34 56 Regions Visited 5 Branch Regions 3 Pre-discovered Areas 2 | . . 1 . . 1 Known Exits Taken 1 | . . . 1 . . Unknown Exits Taken 4 | 1 1 1 . 1 . Scrap Searched 1 | . . . . 1 . Spaces Dug . | . . . . . . Terrain Destroyed 22 | . . . . 22 . Melee . | . . . . . . Projectile . | . . . . . . AOE 22 | . . . . 22 . Terrain Rammed . | . . . . . . Walls Destroyed . | . . . . . . Machines Disabled . | . . . . . . Actions | -11 -10 -10 -9 -9 -9 --------- Run | Yrd Mat Min Mat Min Exi Total 2135 | 49 635 72 970 153 256 Wait 31 | . 11 . 20 . . Move 1787 | 41 549 65 739 150 243 Hop . | . . . . . . Pick Up 28 | 2 6 . 19 . 1 Fast Attach 14 | 6 5 . 3 . . Attach 7 | . 3 . 2 . 2 Detach . | . . . . . . Swap 31 | . 7 1 21 1 1 Drop 38 | . 4 1 28 . 5 Fire 121 | . 50 5 64 2 . Melee 5 | . . . 1 . 4 Ram . | . . . . . . Kick 2 | . . . 2 . . Crush . | . . . . . . Escape Stasis . | . . . . . . Rewire . | . . . . . . Trap 71 | . . . 71 . . Miscellaneous . | . . . . . . Route ------- -11/Scrapyard -10/Materials (discovered 3 exits: *Mat x2 / [*Min]) -10/Mines -9/Materials (discovered 4 exits: [*Mat x2] / *Min x2) -9/Mines (discovered 3 exits: [*Mat] / *Exi / [*Zio]) -9/Exiles History --------- Turn | Location | Event 7 | -11/Scrapyard | Discovered new exit (range 15) 58 | -11/Scrapyard | Entered Materials 311 | -10/Materials | Build established: Mutant 416 | -10/Materials | Discovered new exit (range 5) 527 | -10/Materials | Central database locked down 558 | -10/Materials | Derelicts attacked the area 690 | -10/Materials | Core integrity fell below 50% 734 | -10/Materials | Discovered new exit (range 16) 809 | -10/Materials | Lost 3 parts (1p1u1w) 860 | -10/Materials | Discovered new exit (range 14) 905 | -10/Materials | Entered Mines 905 | -10/Mines | Accompanied by 1 ally 910 | -10/Mines | Assisted by bots powering up and referring to "LRC-V3" 929 | -10/Mines | Learned location of Mines (-8) 974 | -10/Mines | Discovered new exit (range 10) 1000 | -10/Mines | Entered Materials 1000 | -9/Materials | Accompanied by 4 allies 1000 | -9/Materials | Evolved 2 slots: Propulsion x1, Utility x1 1330 | -9/Materials | Build established: Scavenger-Mutant 1339 | -9/Materials | Discovered new exit (range 17) 1920 | -9/Materials | Discovered new exit (range 4) 2049 | -9/Materials | Identified exit to Mines 2311 | -9/Materials | Build established: Mutant 2694 | -9/Materials | Entered Mines 2694 | -9/Mines | Accompanied by 1 ally 2719 | -9/Mines | Discovered new exit (range 9) 2787 | -9/Mines | A Derelict revealed a hidden shortcut to a safe place 2974 | -9/Mines | Deemed a non-threat by the Exiles lab entrance 2975 | -9/Mines | Discovered new exit (range 5) 2985 | -9/Mines | Entered Exiles 2985 | -9/Exiles | Accompanied by 1 ally 3031 | -9/Exiles | Met 8R-AWN 3061 | -9/Exiles | Met EX-HEX 3239 | -9/Exiles | Met EX-DEC 3294 | -9/Exiles | Learned location of Zion (-7) 3326 | -9/Exiles | Met EX-BIN 3377 | -9/Exiles | Aligned with FarCom system 3379 | -9/Exiles | Given EX-Vault access code 3405 | -9/Exiles | Build established: Scavenger-Mutant 3422 | -9/Exiles | Opened EX-Vault 3438 | -9/Exiles | Found Army-in-a-Box 3460 | -9/Exiles | Self-destructed Last Messages --------------- Army-in-a-Box PSU Rigger Chronowheel AWS/Thermal Latent Energy Streamer Gui. Plasma Cannon Firepult YOLO Cannon AWS/Gauss XL Autogun Array AWS/Autocannon Field Lobotomy Kit Longsword +1 Deploy-a-Sentry 03434_ Dropped Datajack. 03434_ Dropped Imp. Medium Laser. 03435_ Dropped Spread Laser. 03435_ Dropped Imp. Medium Laser. 03438_ Dropped Aluminum Leg. 03438_ Acquired Army-in-a-Box. Map ----- +----------------------------------------------------+ | | | | | | | | | | | | | | | | | | | | | | | | | | | | | | | | | | | | | | | | | | | | | ?????????????????????###?????????????????????????? | | ??????????????????####X####??????????????????????? | | ??????????????????# [ ! #??????????????????????? | | ??????????????????# [ [ @#??????????????????????? | | ??????????????????# /=! #??????????????????????? | | ??????????????????## ##??????????????????????? | | ??????????????????#X o #???????????????????????? | | ??????????????????## #???????????????????????? | | ???????????????????# #???????????????????????? | | ???????????????????# #???###?????????????????? | | ???????????????????# #??"""""????????????????? | | ???????????????????# ## """????????????????? | | ???????????????????# X""????????????????? | | ???????????????????# ## """????????????????? | | ?????????????####??# #??"""""????????????????? | | ?????????????"""""?# #???###?????????????????? | | ?????????????""" ## #???????????????????????? | | ???????????#""X" #???????????????????????? | | ???????????#" #???????????????????????? | | ???????????#" ## #???????????????????????? | | ???????????#""""""?# #?#########?????????????? | | ?????????????"###??# #?#"""""""#?????????????? | | ???????????????????# #?#"""""""#?????????????? | | ???????????????????# #?#"""""""#?????????????? | | ??????????????????## ###"" """"#?????????????? | | ??????????????????#" """"#?????????????? | | ??????????????????#" """#?????????????? | | ??????????????????#" """#?????????????? | +----------------------------------------------------+ Best States ------------- Heat Dissipation 42 Energy Generation 12 Energy Capacity 265 Matter Stores 300 Matter Capacity 300 Sight Range 18 Terrain Scan Density 10 Armor Coverage 150 Core Shielding 20 Evasion (%) 55 Item Schematics ----------------- Aluminum Leg | -9/Materials | Scanalyzed Datajack | -9/Materials | Scanalyzed Hacking Suite | -9/Materials | Scanalyzed Reaction Control System | -9/Materials | Scanalyzed Transport Network Coupler | -9/Materials | Scanalyzed Spread Laser | -9/Materials | Scanalyzed Hardlight Generator | -9/Materials | Scanalyzed Structural Scanner | -9/Materials | Scanalyzed Salvage Targeting Computer | -9/Materials | Scanalyzed Mni. Grenade Launcher | -9/Materials | Scanalyzed Robot Schematics ------------------ None Fabricated ------------ Nothing Repaired ---------- Nothing Studied --------- None Alien Tech Used ----------------- None Achievements -------------- None Challenges ------------ None Game ------ Seed SpliceCoilTurbovents Manual? 0 Play Time 00:26:12 Cumulative 269.0 hours Start 2025.11.14 @ 19:31:51 End 2025.11.15 @ 18:09:10 Sessions 2 Manual Loads 0 Difficulty Rogue Special Mode None Game No. 273 Rogue 269 Adventurer 3 Explorer 1 Win Type - Total 1 Types 1/0/0/0/0/0/0/0/0/0 Lore% 78 Gallery% 75 Achievement% 60 Wizard Run 0 Options --------- Layout 0 ASCII 0 Keyboard 0 Movement Mouse Keybinds 0 Fullscreen 2 Font 18/SmallcapsGlow Map View 76x50 Zoom Use 0% Tactical HUD 1 Map Filters NONE Filters NONE Steam 1 RUN: 4aea09c0-c677-4ac5-97e4-ff0764306475